fUST/lending_fUST_20250117
["ID","MTS","AMOUNT","RATE_DAILY","PERIOD"]
[349327160,1737125434193,-500.0,0.00021917,3]
[349327162,1737125434203,-500.0,0.00021917,3]
[349327164,1737125434213,-414.51564704,0.00021917,3]
[349327166,1737125434223,-500.0,0.00021917,3]
[349327168,1737125434233,-500.0,0.00021917,3]
[349327170,1737125434243,-500.0,0.00021917,3]
[349327172,1737125434252,-500.0,0.00021917,3]
[349327174,1737125434262,-500.0,0.00021917,3]
[349327176,1737125434271,-500.0,0.00021917,3]
[349327178,1737125434281,-500.0,0.00021917,3]
[349327180,1737125434290,-623.6162765,0.00021917,3]
[349327182,1737125434300,-500.0,0.00021917,3]
[349327184,1737125434310,-500.0,0.00021917,3]
[349327186,1737125434319,-500.0,0.00021917,3]
[349327188,1737125434329,-503.25247626,0.00021917,3]
[349327190,1737125434339,-500.0,0.00021917,3]
[349327192,1737125434348,-500.0,0.00021917,3]
[349327194,1737125434358,-501.60424759,0.00021917,3]
[349327196,1737125434371,-500.0,0.00021917,3]
[349327198,1737125434381,-500.0,0.00021917,3]
[349327200,1737125434391,-500.0,0.00021917,3]
[349327202,1737125434401,-500.0,0.00021917,3]
[349327204,1737125434413,-500.0,0.00021917,3]
[349327206,1737125434428,-506.42845187,0.00021917,3]
[349327208,1737125434438,-500.0,0.00021917,3]
[349327210,1737125434449,-500.0,0.00021917,3]
[349327212,1737125434461,-500.0,0.00021917,3]
[349327214,1737125434471,-500.0,0.00021917,3]
[349327216,1737125434482,-598.95669132,0.00021917,3]
[349327218,1737125434493,-500.0,0.00021917,3]
[349327220,1737125434504,-500.0,0.00021917,3]
[349327222,1737125434515,-500.0,0.00021917,3]
[349327224,1737125434524,-502.26084643,0.00021917,3]
[349327225,1737125434535,-500.0,0.00021917,3]
[349327227,1737125434545,-500.0,0.00021917,3]
[349327230,1737125434556,-555.83285559,0.00021917,3]
[349327231,1737125434566,-500.0,0.00021917,3]
[349327234,1737125434577,-598.24306704,0.00021917,3]
[349327236,1737125434587,-500.0,0.00021917,3]
[349327238,1737125434597,-500.0,0.00021917,3]
[349327240,1737125434607,-505.42408712,0.00021917,3]
[349327241,1737125434621,-500.0,0.00021917,3]
[349327243,1737125434631,-500.0,0.00021917,3]
[349327245,1737125434641,-504.6851846,0.00021917,3]
[349327248,1737125434651,-500.0,0.00021917,3]
[349327250,1737125434662,-500.0,0.00021917,3]
[349327252,1737125434672,-512.24818811,0.00021917,3]
[349327253,1737125434682,-500.0,0.00021917,3]
[349327256,1737125434692,-500.0,0.00021917,3]
[349327257,1737125434702,-500.0,0.00021917,3]
[349327259,1737125434711,-500.0,0.00021917,3]
[349327261,1737125434721,-500.0,0.00021917,3]
[349327263,1737125434730,-500.58115671,0.00021917,3]
[349327265,1737125434740,-423.93375257,0.00021917,3]
[349327268,1737125434750,-500.0,0.00021917,3]
[349327270,1737125434759,-500.0,0.00021917,3]
[349327271,1737125434769,-500.0,0.00021917,3]
[349327273,1737125434779,-500.0,0.00021917,3]
[349327275,1737125434788,-500.0,0.00021917,2]
[349327278,1737125434798,-500.0,0.00021917,3]
[349327279,1737125434807,-500.0,0.00021917,3]
[349327281,1737125434820,-500.0,0.00021917,3]
[349327284,1737125434830,-501.55387373,0.00021917,3]
[349327285,1737125434840,-500.0,0.00021917,3]
[349327287,1737125434849,-500.0,0.00021917,3]
[349327289,1737125434859,-500.0,0.00021917,3]
[349327291,1737125434870,-500.0,0.00021917,3]
[349327293,1737125434879,-500.0,0.00021917,3]
[349327295,1737125434890,-500.0,0.00021917,3]
[349327297,1737125434900,-435.37259606,0.00021917,3]
[349327299,1737125434909,-500.0,0.00021917,3]
[349327301,1737125434919,-500.0,0.00021917,3]
[349327303,1737125434929,-505.15,0.00021917,3]
[349327305,1737125434938,-500.0,0.00021917,3]
[349327307,1737125434948,-500.0,0.00021917,3]
[349327309,1737125434957,-500.0,0.00021917,3]
[349327311,1737125434967,-500.0,0.00021917,3]
[349327313,1737125434977,-500.0,0.00021917,3]
[349327315,1737125434987,-241.68578211,0.00021917,3]
[349327317,1737125434997,-500.0,0.00021917,3]
[349327319,1737125435006,-500.0,0.00021917,3]
[349327321,1737125435016,-500.0,0.00021917,3]
[349327323,1737125435025,-628.97,0.00021917,3]
[349327325,1737125435035,-597.15948876,0.00021917,3]
[349327328,1737125435044,-500.0,0.00021917,3]
[349327330,1737125435055,-500.0,0.00021917,3]
[349327332,1737125435064,-500.0,0.00021917,3]
[349327334,1737125435078,-778.84,0.00021917,3]
[349327335,1737125435088,-500.0,0.00021917,3]
[349327337,1737125435097,-500.0,0.00021917,3]
[349327339,1737125435106,-500.0,0.00021917,3]
[349327341,1737125435118,-500.0,0.00021917,3]
[349327343,1737125435127,-500.0,0.00021917,3]
[349327345,1737125435136,-500.0,0.00021917,3]
[349327348,1737125435146,-500.0,0.00021917,3]
[349327350,1737125435156,-500.0,0.00021917,3]
[349327351,1737125435165,-500.0,0.00021917,3]
[349327353,1737125435174,-500.0,0.00021917,3]
[349327356,1737125435184,-500.0,0.00021917,3]
[349327357,1737125435193,-500.0,0.00021917,3]
[349327360,1737125435203,-500.0,0.00021917,3]
[349327362,1737125435213,-500.0,0.00021917,3]
[349327364,1737125435222,-500.0,0.00021917,3]
[349327366,1737125435231,-500.0,0.00021917,3]
[349327368,1737125435240,-500.0,0.00021917,3]
[349327370,1737125435249,-500.0,0.00021917,3]
[349327371,1737125435259,-500.0,0.00021917,3]
[349327374,1737125435268,-501.66843595,0.00021917,3]
[349327375,1737125435278,-500.0,0.00021917,3]
[349327378,1737125435287,-500.0,0.00021917,3]
[349327380,1737125435297,-500.0,0.00021917,3]
[349327382,1737125435306,-500.0,0.00021917,3]
[349327384,1737125435315,-500.0,0.00021917,3]
[349327386,1737125435325,-500.0,0.00021917,3]
[349327388,1737125435334,-500.0,0.00021917,3]
[349327390,1737125435343,-500.0,0.00021917,3]
[349327392,1737125435352,-500.0,0.00021917,3]
[349327394,1737125435362,-500.0,0.00021917,3]
[349327396,1737125435373,-500.0,0.00021917,3]
[349327398,1737125435383,-500.0,0.00021917,3]
[349327400,1737125435393,-500.0,0.00021917,3]
[349327402,1737125435403,-500.0,0.00021917,3]
[349327404,1737125435412,-500.0,0.00021917,3]
[349327406,1737125435422,-500.0,0.00021917,3]
[349327408,1737125435433,-500.0,0.00021917,3]
[349327410,1737125435442,-500.0,0.00021917,3]
[349327412,1737125435452,-500.0,0.00021917,3]
[349327414,1737125435462,-500.0,0.00021917,3]
[349327416,1737125435472,-500.0,0.00021917,3]
[349327418,1737125435481,-500.0,0.00021917,3]
[349327420,1737125435491,-500.0,0.00021917,3]
[349327422,1737125435500,-500.0,0.00021917,3]
[349327424,1737125435510,-500.0,0.00021917,3]
[349327426,1737125435520,-500.0,0.00021917,3]
[349327428,1737125435529,-500.0,0.00021917,3]
[349327430,1737125435539,-500.0,0.00021917,3]
[349327432,1737125435548,-500.0,0.00021917,3]
[349327434,1737125435557,-500.0,0.00021917,3]
[349327436,1737125435567,-500.0,0.00021917,3]
[349327438,1737125435577,-500.0,0.00021917,3]
[349327440,1737125435586,-502.27542501,0.00021917,3]
[349327442,1737125435595,-500.0,0.00021917,3]
[349327444,1737125435605,-500.0,0.00021917,3]
[349327446,1737125435614,-500.0,0.00021917,3]
[349327448,1737125435625,-500.0,0.00021917,3]
[349327450,1737125435635,-500.0,0.00021917,3]
[349327452,1737125435644,-500.0,0.00021917,3]
[349327453,1737125435654,-500.0,0.00021917,3]
[349327454,1737125435664,-500.0,0.00021917,3]
[349327455,1737125435673,-501.29567966,0.00021917,3]
[349327456,1737125435683,-500.0,0.00021917,3]
[349327457,1737125435692,-500.0,0.00021917,3]
[349327459,1737125435702,-500.0,0.00021917,3]
[349327462,1737125435712,-500.0,0.00021917,3]
[349327464,1737125435721,-500.0,0.00021917,3]
[349327466,1737125435731,-500.0,0.00021917,3]
[349327468,1737125435741,-500.0,0.00021917,3]
[349327469,1737125435750,-500.0,0.00021917,3]
[349327471,1737125435760,-500.0,0.00021917,3]
[349327473,1737125435770,-500.0,0.00021917,3]
[349327476,1737125435783,-236.52116316,0.00021917,3]
[349327478,1737125435796,-500.0,0.00021917,3]
[349327480,1737125435806,-500.0,0.00021917,3]
[349327482,1737125435816,-500.0,0.00021917,3]
[349327484,1737125435829,-500.0,0.00021917,3]
[349327486,1737125435838,-500.0,0.00021917,3]
[349327488,1737125435848,-500.0,0.00021917,3]
[349327490,1737125435857,-501.31990058,0.00021917,3]
[349327492,1737125435868,-500.0,0.00021917,3]
[349327494,1737125435877,-500.0,0.00021917,3]
[349327496,1737125435886,-500.0,0.00021917,3]
[349327506,1737125435975,-500.0,0.00021917,3]
[349327509,1737125435994,-500.0,0.00021917,3]
[349327511,1737125436003,-500.0,0.00021917,3]
[349327513,1737125436013,-500.0,0.00021917,3]
[349327515,1737125436022,-500.0,0.00021917,3]
[349327517,1737125436032,-500.0,0.00021917,3]
[349327519,1737125436041,-500.0,0.00021917,3]
[349327521,1737125436050,-500.0,0.00021917,3]
[349327523,1737125436060,-500.0,0.00021917,3]
[349327525,1737125436069,-544.25419957,0.00021917,3]
[349327527,1737125436078,-500.0,0.00021917,3]
[349327529,1737125436087,-500.0,0.00021917,3]
[349327531,1737125436097,-500.0,0.00021917,3]
[349327532,1737125436106,-500.0,0.00021917,3]
[349327534,1737125436118,-500.0,0.00021917,3]
[349327537,1737125436128,-500.0,0.00021917,3]
[349327539,1737125436137,-500.0,0.00021917,3]
[349327540,1737125436146,-500.0,0.00021917,3]
[349327542,1737125436155,-500.0,0.00021917,3]
[349327544,1737125436165,-500.0,0.00021917,3]
[349327547,1737125436174,-500.0,0.00021917,3]
[349327548,1737125436183,-500.0,0.00021917,3]
[349327551,1737125436193,-566.27,0.00021917,3]
[349327553,1737125436203,-500.0,0.00021917,3]
[349327555,1737125436212,-500.0,0.00021917,3]
[349327557,1737125436221,-500.0,0.00021917,3]
[349327559,1737125436230,-500.0,0.00021917,3]
[349327561,1737125436239,-1000.0,0.00021917,3]
[349327563,1737125436249,-500.0,0.00021917,3]
[349327565,1737125436258,-500.0,0.00021917,3]
[349327567,1737125436267,-500.0,0.00021917,2]
[349327569,1737125436276,-500.0,0.00021917,3]
[349327571,1737125436286,-500.0,0.00021917,3]
[349327572,1737125436295,-500.0,0.00021917,3]
[349327574,1737125436305,-188.0,0.00021917,2]
[349327577,1737125436314,-502.36263926,0.00021917,3]
[349327578,1737125436323,-500.0,0.00021917,3]
[349327581,1737125436332,-500.0,0.00021917,3]
[349327582,1737125436342,-500.0,0.00021917,3]
[349327585,1737125436351,-500.0,0.00021917,3]
[349327587,1737125436360,-500.0,0.00021917,3]
[349327588,1737125436372,-310.00981694,0.00021917,3]
[349327591,1737125436382,-511.61901017,0.00021917,3]
[349327593,1737125436391,-500.0,0.00021917,3]
[349327594,1737125436401,-500.0,0.00021917,3]
[349327596,1737125436410,-500.0,0.00021917,3]
[349327599,1737125436420,-500.0,0.00021917,3]
[349327601,1737125436432,-500.0,0.00021917,3]
[349327602,1737125436441,-500.0,0.00021917,3]
[349327604,1737125436451,-594.94,0.00021917,3]
[349327607,1737125436460,-500.0,0.00021917,3]
[349327608,1737125436470,-500.0,0.00021917,3]
[349327610,1737125436480,-500.0,0.00021917,3]
[349327612,1737125436489,-500.0,0.00021917,3]
[349327615,1737125436499,-500.0,0.00021917,3]
[349327617,1737125436509,-500.0,0.00021917,3]
[349327619,1737125436518,-508.58202565,0.00021917,3]
[349327621,1737125436528,-500.0,0.00021917,3]
[349327623,1737125436538,-1511.15,0.00021917,3]
[349327625,1737125436548,-500.0,0.00021917,3]
[349327627,1737125436557,-2532.53,0.00021917,3]
[349327629,1737125436567,-500.0,0.00021917,3]
[349327631,1737125436577,-500.0,0.00021917,3]
[349327633,1737125436586,-500.0,0.00021917,3]
[349327635,1737125436596,-500.0,0.00021917,3]
[349327637,1737125436606,-500.94779536,0.00021917,3]
[349327639,1737125436617,-500.0,0.00021917,3]
[349327641,1737125436627,-500.0,0.00021917,3]
[349327643,1737125436637,-412.05439804,0.00021917,3]
[349327645,1737125436647,-500.0,0.00021917,3]
[349327647,1737125436656,-500.0,0.00021917,3]
[349327649,1737125436667,-500.0,0.00021917,3]
[349327651,1737125436677,-500.0,0.00021917,3]
[349327653,1737125436686,-1076.78,0.00021917,3]
[349327655,1737125436696,-500.0,0.00021917,3]
[349327657,1737125436707,-986.35,0.00021917,3]
[349327659,1737125436717,-500.0,0.00021917,3]
[349327660,1737125436727,-500.0,0.00021917,3]
[349327661,1737125436736,-500.0,0.00021917,3]
[349327662,1737125436746,-500.0,0.00021917,3]
[349327663,1737125436755,-505.533981,0.00021917,3]
[349327664,1737125436764,-500.0,0.00021917,3]
[349327665,1737125436773,-500.0,0.00021917,3]
[349327666,1737125436781,-500.0,0.00021917,3]
[349327667,1737125436790,-500.0,0.00021917,3]
[349327668,1737125436800,-500.0,0.00021917,3]
[349327669,1737125436809,-500.0,0.00021917,3]
[349327670,1737125436824,-500.0,0.00021917,3]
[349327671,1737125436833,-500.0,0.00021917,3]
[349327672,1737125436842,-500.0,0.00021917,3]
[349327673,1737125436851,-500.0,0.00021917,3]
[349327674,1737125436860,-519.12,0.00021917,3]
[349327675,1737125436871,-500.0,0.00021917,2]
[349327676,1737125436880,-500.0,0.00021917,3]
[349327678,1737125436889,-500.0,0.00021917,3]
[349327679,1737125436899,-550.0,0.00021917,3]
[349327681,1737125436909,-500.0,0.00021917,3]
[349327683,1737125436919,-500.0,0.00021917,3]
[349327685,1737125436928,-500.0,0.00021917,3]
[349327687,1737125436938,-500.0,0.00021917,3]
[349327689,1737125436946,-500.0,0.00021917,3]
[349327691,1737125436956,-500.0,0.00021917,3]
[349327693,1737125436965,-499.0,0.00021917,2]
[349327695,1737125436975,-500.0,0.00021917,3]
[349327697,1737125436985,-500.0,0.00021917,3]
[349327699,1737125436995,-500.0,0.00021917,3]
[349327701,1737125437004,-500.0,0.00021917,2]
[349327703,1737125437014,-500.0,0.00021917,3]
[349327706,1737125437024,-500.0,0.00021917,3]
[349327708,1737125437033,-500.0,0.00021917,3]
[349327710,1737125437043,-500.0,0.00021917,3]
[349327712,1737125437053,-500.0,0.00021917,3]
[349327714,1737125437063,-585.35515571,0.00021917,3]
[349327716,1737125437072,-500.0,0.00021917,3]
[349327718,1737125437081,-500.0,0.00021917,3]
[349327720,1737125437091,-500.0,0.00021917,3]
[349327722,1737125437100,-500.0,0.00021917,3]
[349327724,1737125437109,-500.0,0.00021917,3]
[349327726,1737125437120,-500.0,0.00021917,3]
[349327728,1737125437129,-501.03632925,0.00021917,3]
[349327730,1737125437138,-500.0,0.00021917,3]
[349327732,1737125437147,-500.0,0.00021917,3]
[349327734,1737125437156,-500.0,0.00021917,3]
[349327735,1737125437165,-6875.18,0.00021917,3]
[349327738,1737125437175,-501.16352778,0.00021917,3]
[349327740,1737125437184,-500.0,0.00021917,3]
[349327741,1737125437193,-500.0,0.00021917,3]
[349327743,1737125437202,-1769.31,0.00021917,3]
[349327746,1737125437212,-500.0,0.00021917,3]
[349327747,1737125437223,-575.97,0.00021917,3]
[349327750,1737125437232,-500.0,0.00021917,3]
[349327752,1737125437242,-500.0,0.00021917,3]
[349327754,1737125437254,-500.0,0.00021917,3]
[349327756,1737125437263,-500.0,0.00021917,3]
[349327758,1737125437273,-500.0,0.00021917,3]
[349327760,1737125437282,-500.0,0.00021917,3]
[349327761,1737125437291,-500.0,0.00021917,3]
[349327764,1737125437301,-500.0,0.00021917,3]
[349327766,1737125437310,-500.0,0.00021917,3]
[349327767,1737125437320,-1189.8,0.00021917,3]
[349327770,1737125437330,-500.0,0.00021917,3]
[349327771,1737125437339,-500.0,0.00021917,3]
[349327774,1737125437348,-500.0,0.00021917,3]
[349327775,1737125437358,-500.0,0.00021917,3]
[349327778,1737125437368,-494.14944118,0.00021917,3]
[349327780,1737125437378,-500.0,0.00021917,3]
[349327781,1737125437387,-500.0,0.00021917,3]
[349327783,1737125437397,-392.87671445,0.00021917,3]
[349327798,1737125437526,-107.12328555,0.00021917,3]
[349327800,1737125437535,-525.08447721,0.00021917,3]
[349327802,1737125437545,-500.0,0.00021917,3]
[349327804,1737125437554,-3539.33,0.00021917,3]
[349327806,1737125437563,-811.11,0.00021917,3]
[349327808,1737125437573,-510.8,0.00021917,3]
[349327810,1737125437583,-513.78033632,0.00021917,3]
[349327812,1737125437592,-197.08290386,0.00021917,3]
[349327814,1737125437601,-500.0,0.00021917,3]
[349327816,1737125437610,-500.0,0.00021917,3]
[349327818,1737125437624,-740.82,0.00021917,3]
[349327820,1737125437633,-500.0,0.00021917,3]
[349327822,1737125437643,-500.0,0.00021917,3]
[349327824,1737125437651,-500.0,0.00021917,3]
[349327826,1737125437661,-2116.94,0.00021917,3]
[349327828,1737125437670,-500.0,0.00021917,3]
[349327830,1737125437679,-502.75302765,0.00021917,3]
[349327832,1737125437689,-521.74,0.00021917,3]
[349327834,1737125437699,-500.0,0.00021917,3]
[349327836,1737125437708,-500.0,0.00021917,3]
[349327838,1737125437717,-500.0,0.00021917,3]
[349327840,1737125437726,-305.69799221,0.00021917,3]
[349327903,1737125438318,-395.0,0.00021799,2]
[349327906,1737125438328,-194.30200779,0.00021917,3]
[349327908,1737125438337,-500.0,0.00021917,3]
[349327910,1737125438347,-500.0,0.00021917,3]
[349327912,1737125438356,-147.69800521,0.00021917,3]
[349327923,1737125438463,-352.30199479,0.00021917,3]
[349327925,1737125438473,-33.31554336,0.00021917,3]
[349327928,1737125438487,-466.68445664,0.00021917,3]
[349327930,1737125438497,-602.46943562,0.00021917,3]
[349327932,1737125438506,-500.0,0.00021917,3]
[349327934,1737125438514,-500.0,0.00021917,3]
[349327936,1737125438523,-500.0,0.00021917,3]
[349327938,1737125438533,-251.29021777,0.00021917,3]
[349327940,1737125438542,-337.41566373,0.00021917,3]
[349328195,1737125442767,-332.492,0.00021721,2]
[349328197,1737125442777,-228.32823559,0.00021917,3]
[349328200,1737125442786,-500.0,0.00021917,3]
[349328202,1737125442795,-524.35,0.00021917,3]
[349328204,1737125442805,-500.0,0.00021917,3]
[349328207,1737125442814,-502.94435537,0.00021917,3]
[349328211,1737125442826,-500.0,0.00021917,3]
[349328214,1737125442836,-500.0,0.00021917,3]
[349328216,1737125442845,-500.0,0.00021917,3]
[349328220,1737125442854,-500.0,0.00021917,3]
[349328223,1737125442865,-500.0,0.00021917,3]
[349328226,1737125442877,-332.492,0.0002194,2]
[349328229,1737125442887,-500.0,0.00021973,2]
[349328233,1737125442897,-500.0,0.00021973,2]
[349328234,1737125442907,-250.60049068,0.00021973,2]
[349328236,1737125442917,-500.0,0.00021973,2]
[349328238,1737125442926,-500.0,0.00021973,2]
[349328241,1737125442936,-500.0,0.00021973,2]
[349328243,1737125442945,-500.0,0.00021973,2]
[349328245,1737125442954,-513.0,0.00022,2]
[349328247,1737125442965,-179.548681,0.00022027,2]
[349328249,1737125442975,-500.0,0.00022054,3]
[349328251,1737125442984,-500.0,0.00022054,3]
[349328253,1737125442994,-500.0,0.00022054,3]
[349328255,1737125443004,-500.0,0.00022054,2]
[349328257,1737125443013,-500.0,0.00022054,3]
[349328259,1737125443022,-500.0,0.00022054,3]
[349328261,1737125443031,-500.0,0.00022054,3]
[349328263,1737125443041,-778.84,0.00022054,3]
[349328265,1737125443053,-500.0,0.00022054,3]
[349328267,1737125443063,-500.0,0.00022054,3]
[349328269,1737125443073,-511.39507894,0.00022054,3]
[349328271,1737125443083,-500.0,0.00022054,3]
[349328273,1737125443092,-150.48,0.00022054,3]
[349328275,1737125443102,-500.0,0.00022054,3]
[349328277,1737125443112,-500.0,0.00022054,3]
[349328279,1737125443125,-500.0,0.00022054,3]
[349328281,1737125443135,-500.0,0.00022054,3]
[349328283,1737125443144,-500.0,0.00022054,3]
[349328285,1737125443154,-500.0,0.00022054,3]
[349328287,1737125443171,-500.0,0.00022054,3]
[349328289,1737125443180,-500.0,0.00022054,3]
[349328291,1737125443190,-594.94,0.00022054,3]
[349328293,1737125443199,-500.0,0.00022054,3]
[349328295,1737125443209,-1511.15,0.00022054,3]
[349328297,1737125443218,-481.54566799,0.00022054,3]
[349328299,1737125443227,-2532.53,0.00022054,3]
[349328301,1737125443236,-500.0,0.00022054,3]
[349328303,1737125443245,-500.0,0.00022054,3]
[349328305,1737125443255,-1076.78,0.00022054,3]
[349328307,1737125443266,-556.21,0.00022054,3]
[349328309,1737125443275,-986.35,0.00022054,3]
[349328310,1737125443285,-500.0,0.00022054,3]
[349328311,1737125443295,-500.0,0.00022054,3]
[349328312,1737125443305,-561.38,0.00022054,3]
[349328313,1737125443315,-621.15,0.00022054,3]
[349328314,1737125443325,-500.0,0.00022054,3]
[349328315,1737125443335,-277.8,0.00022054,3]
[349328316,1737125443344,-500.0,0.00022054,2]
[349328317,1737125443354,-500.0,0.00022054,3]
[349328318,1737125443364,-452.49,0.00022054,3]
[349328319,1737125443376,-500.0,0.00022054,3]
[349328320,1737125443386,-500.0,0.00022054,3]
[349328321,1737125443396,-500.0,0.00022054,3]
[349328322,1737125443405,-500.0,0.00022054,3]
[349328323,1737125443414,-500.0,0.00022054,3]
[349328324,1737125443424,-500.0,0.00022054,3]
[349328325,1737125443433,-500.0,0.00022054,3]
[349328326,1737125443443,-3273.73209357,0.00022054,3]
[349328327,1737125443456,-3601.44790643,0.00022054,3]
[349328330,1737125443466,-500.0,0.00022054,3]
[349328332,1737125443476,-1769.31,0.00022054,3]
[349328333,1737125443486,-278.83,0.00022054,3]
[349328334,1737125443496,-1189.8,0.00022054,3]
[349328335,1737125443506,-500.0,0.00022054,3]
[349328336,1737125443515,-500.0,0.00022054,3]
[349328337,1737125443525,-3539.33,0.00022054,3]
[349328338,1737125443535,-811.11,0.00022054,3]
[349328339,1737125443545,-510.8,0.00022054,3]
[349328340,1737125443555,-740.82,0.00022054,3]
[349328341,1737125443565,-2116.94,0.00022054,3]
[349328343,1737125443575,-500.0,0.00022054,3]
[349328344,1737125443584,-355.7,0.00022054,3]
[349328346,1737125443593,-630.32,0.00022054,3]
[349328348,1737125443602,-500.0,0.00022054,3]
[349328350,1737125443612,-500.0,0.00022054,3]
[349328352,1737125443623,-500.0,0.00022054,3]
[349328354,1737125443633,-160.653358,0.00022174,2]
[349328356,1737125443642,-500.0,0.0002219,2]
[349328358,1737125443651,-279.98773557,0.00022191,3]
[349328624,1737125446353,-500.0,0.00021917,3]
[349328626,1737125446363,-500.0,0.00021917,3]
[349328628,1737125446373,-500.0,0.00022054,3]
[349328630,1737125446382,-500.0,0.00022054,3]
[349328632,1737125446391,-152.0814522,0.00022191,3]
[349328635,1737125446410,-149.76908554,0.00022191,3]
[349328637,1737125446424,-500.0,0.00022191,3]
[349328640,1737125446438,-500.0,0.00022191,3]
[349328642,1737125446452,-75.00035546,0.00022191,3]
[349336111,1737125527576,2207.58,0.00025,120]
[349339716,1737125866908,161.180793,0.00013973,2]
[349339719,1737126164042,304.85,0.00025,120]
[349339732,1737126457351,10000.0,0.00018,30]
[349339739,1737126528483,726.0,0.00025,120]
[349339787,1737126632587,-1171.36283283,0.00017951,2]
[349339788,1737126632597,-1171.36283283,0.00018132,2]
[349339789,1737126632608,-1680.25131547,0.000185,2]
[349339790,1737126632618,-924.55368071,0.000189,2]
[349339791,1737126632628,-354.408394,0.00019093,2]
[349339792,1737126632638,-277.357425,0.00019244,2]
[349339793,1737126632648,-500.0,0.0001936,2]
[349339794,1737126632658,-298.08288746,0.0001936,2]
[349339796,1737126632667,-13418.1881137,0.0002013,2]
[349339980,1737126639255,-3258.33721516,0.00019929,2]
[349339981,1737126639265,-736.50928957,0.0002013,2]
[349339982,1737126639277,-688.31456925,0.0002013,2]
[349339983,1737126639308,-5082.98802748,0.0002013,2]
[349339984,1737126639318,-300.0,0.0002013,2]
[349339985,1737126639327,-4300.0,0.00020134,2]
[349339986,1737126639338,-162.73410753,0.00020786,2]
[349339987,1737126639348,-16401.4411756,0.00020886,2]
[349339988,1737126639358,-2786.35090386,0.00021582,2]
[349339989,1737126639369,-674.62973335,0.00021582,2]
[349339990,1737126639382,-581.65499999,0.00021582,2]
[349339991,1737126639395,-5036.66058752,0.00021582,2]
[349339992,1737126639405,-4300.0,0.00021745,4]
[349339993,1737126639415,-9079.29622473,0.00021758,2]
[349339994,1737126639426,-179.548681,0.0002177,2]
[349339995,1737126639435,-2067.0,0.00021799,2]
[349339996,1737126639446,-536.0,0.00021799,2]
[349339997,1737126639456,-1328.38,0.00021799,2]
[349339998,1737126639468,-164.69997975,0.00021816,2]
[349339999,1737126639478,-1037.55,0.000219,2]
[349340000,1737126639489,-300.0,0.000219,9]
[349340001,1737126639499,-4667.78184879,0.000219,3]
[349340002,1737126639515,-500.0,0.00021916,2]
[349340003,1737126639524,-500.0,0.00021916,2]
[349340004,1737126639534,-500.0,0.00021916,2]
[349340005,1737126639544,-500.0,0.00021916,2]
[349340006,1737126639553,-500.0,0.00021916,2]
[349340007,1737126639563,-159.24330101,0.00021916,2]
[349340026,1737126640745,-162.73410751,0.00021187,2]
[349340027,1737126640755,-395.0,0.00021799,2]
[349340028,1737126640766,-340.75669899,0.00021916,2]
[349340029,1737126640776,-500.0,0.00021916,2]